Workbook

Sheet No Hard Surfacing
A1: 18CO - Dawad Development
A2: Infrastructure Costs vs. Buildable Areas
A3: Date: | B3: 2025-01-10
A5: Estimated Infrastructure Cost: | D5: 360000
A6: Total Development Area:
C8: Buildable | D8: Infrastructure
A9: Lot # | B9: Lot Size (ac) | C9: Area (ac) | D9: Cost Share
A10: 1 | B10: 1.717 | C10: 0.978 | D10: =C10/$C$14*$D$5 -> 52596.35494
A11: 2 | B11: 2.229 | C11: 1.917 | D11: =C11/$C$14*$D$5 -> 103095.3092
A12: 3 | B12: 1.706 | C12: 1.706 | D12: 91747.83388
A13: 4 | B13: 2.093 | C13: 2.093 | D13: 112560.5019
A14: Total | B14: =SUM(B10:B13) -> 7.745 | C14: =SUM(C10:C13) -> 6.694

Sheet With Hard Surfacing
A1: 18CO - Dawad Development
A2: Infrastructure Costs vs. Buildable Areas
A3: Date: | B3: 2025-01-13
A5: Estimated Infrastructure Cost: | D5: 600000 | E5: (w/ Hard Surfacing)
A6: Total Development Area:
C8: Buildable | D8: Infrastructure | G8: Central Bid w/o hard surfacing | J8: 324756
A9: Lot # | B9: Lot Size (ac) | C9: Area (ac) | D9: Cost Share | G9: United Hard Surfacing Cost | J9: 171763
A10: 1 | B10: 1.717 | C10: 0.978 | D10: =C10/$C$14*$D$5 -> 87660.59157 | G10: United Hard Surface Cost as Sub | J10: =1.1*J9 -> 188939.3
A11: 2 | B11: 2.229 | C11: 1.917 | D11: =C11/$C$14*$D$5 -> 171825.5154
A12: 3 | B12: 1.706 | C12: 1.706 | D12: 152913.0565 | G12: 2023 Const. Cost | J12: =J8+J10 -> 513695.3
A13: 4 | B13: 2.093 | C13: 2.093 | D13: 187600.8366 | G13: 2025 Const. Cost | J13: =J12*1.05*1.05 -> 566349.0683 | K13: (includes 5% inflation per year)
A14: Total | B14: =SUM(B10:B13) -> 7.745 | C14: =SUM(C10:C13) -> 6.694 | G14: Contingency (6%±) | J14: 33651
G15: 2025 Total Cost | J15: =SUM(J13:J14) -> 600000.0683

Sheet With Hard Surfacing&Land
A1: 18CO - Dawad Development
A2: Infrastructure Costs vs. Buildable Areas
A3: Date: | B3: 2025-02-12
A5: Estimated Infrastructure Cost: | D5: 600000 | E5: (w/ Hard Surfacing)
A6: Land Cost: | D6: 600000
C7: Total | D7: =SUM(D5:D6) -> 1200000
A8: Total Development Area:
C10: Buildable | D10: Infrastructure | G10: Central Bid w/o hard surfacing | J10: 324756
A11: Lot # | B11: Lot Size (ac) | C11: Area (ac) | D11: Cost Share | G11: United Hard Surfacing Cost | J11: 171763
A12: 1 | B12: 1.717 | C12: 0.978 | D12: =C12/$C$16*$D$7 -> 175321.1831 | G12: United Hard Surface Cost as Sub | J12: =1.1*J11 -> 188939.3
A13: 2 | B13: 2.229 | C13: 1.917 | D13: =C13/$C$16*$D$7 -> 343651.0308
A14: 3 | B14: 1.706 | C14: 1.706 | D14: =C14/$C$16*$D$7 -> 305826.1129 | G14: 2023 Const. Cost | J14: =J10+J12 -> 513695.3
A15: 4 | B15: 2.093 | C15: 2.093 | D15: =C15/$C$16*$D$7 -> 375201.6731 | G15: 2025 Const. Cost | J15: =J14*1.05*1.05 -> 566349.0683 | K15: (includes 5% inflation per year)
A16: Total | B16: =SUM(B12:B15) -> 7.745 | C16: =SUM(C12:C15) -> 6.694 | G16: Contingency (6%±) | J16: 33651
G17: 2025 Total Cost | J17: =SUM(J15:J16) -> 600000.0683
